Workbook

Sheet Loan Calculator
A2: PRIVATE LOAN REPAYMENT CALCULATOR
A6: Loan Amount | D6: 70000 | F6: Total Number of Installments | J6: =IFERROR(IF(D9="Monthly",(D8*12),IF(D9="Fortnightly",(D8*26),IF(D9="Weekly",(D8*52),0))),0) -> 520
A7: Interest Rate | D7: 0.02 | F7: =IF(D9>0,D9,"") -> Fortnightly | G7: Repayment Amount | J7: =IFERROR((PMT(D7/J9,J6,-D6,0,0)),0) -> 163.3796492
A8: Loan Term in Years | D8: 20 | F8: Total Interest Amount | J8: =IFERROR((CUMIPMT(D7/J9,J6,D6,1,J6,0)),0) -> -14957.41758
A9: Repayment Frequency | D9: Fortnightly | F9: Installment/year | J9: =IFERROR((IF(D9="Monthly",12,IF(D9="Fortnightly",26,IF(D9="Weekly",52,0)))),0) -> 26
A11: Total Amount to be repaid: | F11: =IF(D6*D7*D8>0,D6+(-J8),"enter values") -> 84957.41758
A14: Installment | B14: Interest | C14: Repayment | D14: Balance
A16: =IFERROR(IF(D6*D7*D8*J7>0,1,""),"") -> 1 | B16: =IFERROR(IF(D6*D7*D8>0,(ROUNDUP((D6*$D$7)/$J$9,3)),""),"") -> 53.847 | C16: =IFERROR(IF(D6*D7*D8>0,J7,""),"") -> 163.3796492 | D16: =IFERROR(ROUND(D6+B16-C16,2),"") -> 69890.47
A17: =IFERROR(IF(D16>0,A16+1,""),"") -> 2 | B17: =IFERROR(IF(D16>0,(ROUND((D16*$D$7)/($J$9),2)),""),"") -> 53.76 | C17: =IFERROR(IF(AND(D16>0,D16<>""),$J$7,""),"") -> 163.3796492 | D17: =IFERROR(IF(ROUND((D16+B17)-C17,2)>0.1,ROUND((D16+B17)-C17,2),0),"") -> 69780.85
A18: =IFERROR(IF(D17>0,A17+1,""),"") -> 3 | B18: =IFERROR(IF(D17>0,(ROUND((D17*$D$7)/($J$9),2)),""),"") -> 53.68 | C18: =IFERROR(IF(AND(D17>0,D17<>""),$J$7,""),"") -> 163.3796492 | D18: =IFERROR(IF(ROUND((D17+B18)-C18,2)>0.1,ROUND((D17+B18)-C18,2),0),"") -> 69671.15
A19: 4 | B19: =IFERROR(IF(D18>0,(ROUND((D18*$D$7)/($J$9),2)),""),"") -> 53.59 | C19: 163.3796492 | D19: 69561.36
A20: 5 | B20: 53.51 | C20: 163.3796492 | D20: 69451.49
A21: 6 | B21: =IFERROR(IF(D20>0,(ROUND((D20*$D$7)/($J$9),2)),""),"") -> 53.42 | C21: 163.3796492 | D21: 69341.53
A22: 7 | B22: 53.34 | C22: 163.3796492 | D22: 69231.49
A23: 8 | B23: 53.25 | C23: 163.3796492 | D23: 69121.36
A24: 9 | B24: 53.17 | C24: 163.3796492 | D24: 69011.15
A25: 10 | B25: 53.09 | C25: 163.3796492 | D25: 68900.86
A26: 11 | B26: 53 | C26: 163.3796492 | D26: 68790.48
A27: 12 | B27: 52.92 | C27: 163.3796492 | D27: 68680.02
A28: 13 | B28: 52.83 | C28: 163.3796492 | D28: 68569.47
A29: =IFERROR(IF(D28>0,A28+1,""),"") -> 14 | B29: =IFERROR(IF(D28>0,(ROUND((D28*$D$7)/($J$9),2)),""),"") -> 52.75 | C29: 163.3796492 | D29: =IFERROR(IF(ROUND((D28+B29)-C29,2)>0.1,ROUND((D28+B29)-C29,2),0),"") -> 68458.84
A30: 15 | B30: 52.66 | C30: 163.3796492 | D30: 68348.12
A31: 16 | B31: 52.58 | C31: 163.3796492 | D31: 68237.32
A32: 17 | B32: 52.49 | C32: 163.3796492 | D32: 68126.43
A33: 18 | B33: 52.4 | C33: 163.3796492 | D33: 68015.45
A34: 19 | B34: 52.32 | C34: 163.3796492 | D34: 67904.39
A35: 20 | B35: 52.23 | C35: 163.3796492 | D35: 67793.24
A36: 21 | B36: 52.15 | C36: 163.3796492 | D36: 67682.01
A37: 22 | B37: 52.06 | C37: 163.3796492 | D37: 67570.69
A38: 23 | B38: 51.98 | C38: 163.3796492 | D38: 67459.29
A39: 24 | B39: 51.89 | C39: 163.3796492 | D39: 67347.8
A40: 25 | B40: 51.81 | C40: 163.3796492 | D40: 67236.23
A41: 26 | B41: 51.72 | C41: 163.3796492 | D41: 67124.57
A42: 27 | B42: 51.63 | C42: 163.3796492 | D42: 67012.82
A43: 28 | B43: 51.55 | C43: 163.3796492 | D43: 66900.99
A44: 29 | B44: 51.46 | C44: 163.3796492 | D44: 66789.07
A45: 30 | B45: 51.38 | C45: 163.3796492 | D45: 66677.07
A46: 31 | B46: 51.29 | C46: 163.3796492 | D46: 66564.98
A47: 32 | B47: 51.2 | C47: 163.3796492 | D47: 66452.8
A48: 33 | B48: 51.12 | C48: 163.3796492 | D48: 66340.54
A49: 34 | B49: 51.03 | C49: 163.3796492 | D49: 66228.19
A50: 35 | B50: 50.94 | C50: 163.3796492 | D50: 66115.75
A51: 36 | B51: 50.86 | C51: 163.3796492 | D51: 66003.23
A52: 37 | B52: 50.77 | C52: 163.3796492 | D52: 65890.62
A53: 38 | B53: 50.69 | C53: 163.3796492 | D53: 65777.93
A54: 39 | B54: 50.6 | C54: 163.3796492 | D54: 65665.15
A55: 40 | B55: 50.51 | C55: 163.3796492 | D55: 65552.28
A56: 41 | B56: 50.42 | C56: 163.3796492 | D56: 65439.32
A57: 42 | B57: 50.34 | C57: 163.3796492 | D57: 65326.28
A58: 43 | B58: 50.25 | C58: 163.3796492 | D58: 65213.15
A59: 44 | B59: 50.16 | C59: 163.3796492 | D59: 65099.93
A60: 45 | B60: 50.08 | C60: 163.3796492 | D60: 64986.63
A61: 46 | B61: 49.99 | C61: 163.3796492 | D61: 64873.24
A62: 47 | B62: 49.9 | C62: 163.3796492 | D62: 64759.76
A63: 48 | B63: 49.82 | C63: 163.3796492 | D63: 64646.2
A64: 49 | B64: 49.73 | C64: 163.3796492 | D64: 64532.55
A65: 50 | B65: 49.64 | C65: 163.3796492 | D65: 64418.81
A66: 51 | B66: 49.55 | C66: 163.3796492 | D66: 64304.98
A67: 52 | B67: 49.47 | C67: 163.3796492 | D67: 64191.07
A68: 53 | B68: 49.38 | C68: 163.3796492 | D68: 64077.07
A69: 54 | B69: 49.29 | C69: 163.3796492 | D69: 63962.98
A70: 55 | B70: 49.2 | C70: 163.3796492 | D70: 63848.8
A71: 56 | B71: 49.11 | C71: 163.3796492 | D71: 63734.53
A72: 57 | B72: 49.03 | C72: 163.3796492 | D72: 63620.18
A73: 58 | B73: 48.94 | C73: 163.3796492 | D73: 63505.74
A74: 59 | B74: 48.85 | C74: 163.3796492 | D74: 63391.21
A75: 60 | B75: 48.76 | C75: 163.3796492 | D75: 63276.59
A76: 61 | B76: 48.67 | C76: 163.3796492 | D76: 63161.88
A77: 62 | B77: 48.59 | C77: 163.3796492 | D77: 63047.09
A78: 63 | B78: 48.5 | C78: 163.3796492 | D78: 62932.21
A79: 64 | B79: 48.41 | C79: 163.3796492 | D79: 62817.24
A80: 65 | B80: 48.32 | C80: 163.3796492 | D80: 62702.18
A81: 66 | B81: 48.23 | C81: 163.3796492 | D81: 62587.03
A82: 67 | B82: 48.14 | C82: =IFERROR(IF(AND(D81>0,D81<>""),$J$7,""),"") -> 163.3796492 | D82: 62471.79
A83: 68 | B83: 48.06 | C83: 163.3796492 | D83: 62356.47
A84: 69 | B84: 47.97 | C84: 163.3796492 | D84: 62241.06
A85: 70 | B85: 47.88 | C85: 163.3796492 | D85: 62125.56
A86: 71 | B86: 47.79 | C86: 163.3796492 | D86: 62009.97
A87: 72 | B87: 47.7 | C87: 163.3796492 | D87: 61894.29
A88: 73 | B88: 47.61 | C88: 163.3796492 | D88: 61778.52
A89: 74 | B89: 47.52 | C89: 163.3796492 | D89: 61662.66
A90: 75 | B90: 47.43 | C90: 163.3796492 | D90: 61546.71
A91: 76 | B91: 47.34 | C91: 163.3796492 | D91: 61430.67
A92: 77 | B92: 47.25 | C92: 163.3796492 | D92: 61314.54
A93: =IFERROR(IF(D92>0,A92+1,""),"") -> 78 | B93: =IFERROR(IF(D92>0,(ROUND((D92*$D$7)/($J$9),2)),""),"") -> 47.17 | C93: 163.3796492 | D93: =IFERROR(IF(ROUND((D92+B93)-C93,2)>0.1,ROUND((D92+B93)-C93,2),0),"") -> 61198.33
A94: 79 | B94: 47.08 | C94: 163.3796492 | D94: 61082.03
A95: 80 | B95: 46.99 | C95: 163.3796492 | D95: 60965.64
A96: 81 | B96: 46.9 | C96: 163.3796492 | D96: 60849.16
A97: 82 | B97: 46.81 | C97: 163.3796492 | D97: 60732.59
A98: 83 | B98: 46.72 | C98: 163.3796492 | D98: 60615.93
A99: 84 | B99: 46.63 | C99: 163.3796492 | D99: 60499.18
A100: 85 | B100: 46.54 | C100: 163.3796492 | D100: 60382.34
A101: 86 | B101: 46.45 | C101: 163.3796492 | D101: 60265.41
A102: 87 | B102: 46.36 | C102: 163.3796492 | D102: 60148.39
A103: 88 | B103: 46.27 | C103: 163.3796492 | D103: 60031.28
A104: 89 | B104: 46.18 | C104: 163.3796492 | D104: 59914.08
A105: 90 | B105: 46.09 | C105: 163.3796492 | D105: 59796.79
A106: 91 | B106: 46 | C106: 163.3796492 | D106: 59679.41
A107: 92 | B107: 45.91 | C107: 163.3796492 | D107: 59561.94
A108: 93 | B108: 45.82 | C108: 163.3796492 | D108: 59444.38
A109: 94 | B109: 45.73 | C109: 163.3796492 | D109: 59326.73
A110: 95 | B110: 45.64 | C110: 163.3796492 | D110: 59208.99
A111: 96 | B111: 45.55 | C111: 163.3796492 | D111: 59091.16
A112: 97 | B112: 45.45 | C112: 163.3796492 | D112: 58973.23
A113: 98 | B113: 45.36 | C113: 163.3796492 | D113: 58855.21
A114: 99 | B114: 45.27 | C114: 163.3796492 | D114: 58737.1
A115: 100 | B115: 45.18 | C115: 163.3796492 | D115: 58618.9
A116: 101 | B116: 45.09 | C116: 163.3796492 | D116: 58500.61
A117: 102 | B117: 45 | C117: 163.3796492 | D117: 58382.23
A118: 103 | B118: 44.91 | C118: 163.3796492 | D118: 58263.76
A119: 104 | B119: 44.82 | C119: 163.3796492 | D119: 58145.2
A120: 105 | B120: 44.73 | C120: 163.3796492 | D120: 58026.55
A121: 106 | B121: 44.64 | C121: 163.3796492 | D121: 57907.81
A122: 107 | B122: 44.54 | C122: 163.3796492 | D122: 57788.97
A123: 108 | B123: 44.45 | C123: 163.3796492 | D123: 57670.04
A124: 109 | B124: 44.36 | C124: 163.3796492 | D124: 57551.02
A125: 110 | B125: 44.27 | C125: 163.3796492 | D125: 57431.91
A126: 111 | B126: 44.18 | C126: 163.3796492 | D126: 57312.71
A127: 112 | B127: 44.09 | C127: 163.3796492 | D127: 57193.42
A128: 113 | B128: 43.99 | C128: 163.3796492 | D128: 57074.03
A129: 114 | B129: 43.9 | C129: 163.3796492 | D129: 56954.55
A130: 115 | B130: 43.81 | C130: 163.3796492 | D130: 56834.98
A131: 116 | B131: 43.72 | C131: 163.3796492 | D131: 56715.32
A132: 117 | B132: 43.63 | C132: 163.3796492 | D132: 56595.57
A133: 118 | B133: 43.54 | C133: 163.3796492 | D133: 56475.73
A134: 119 | B134: 43.44 | C134: 163.3796492 | D134: 56355.79
A135: 120 | B135: 43.35 | C135: 163.3796492 | D135: 56235.76
A136: 121 | B136: 43.26 | C136: 163.3796492 | D136: 56115.64
A137: 122 | B137: 43.17 | C137: 163.3796492 | D137: 55995.43
A138: 123 | B138: 43.07 | C138: 163.3796492 | D138: 55875.12
A139: 124 | B139: 42.98 | C139: 163.3796492 | D139: 55754.72
A140: 125 | B140: 42.89 | C140: 163.3796492 | D140: 55634.23
A141: 126 | B141: 42.8 | C141: 163.3796492 | D141: 55513.65
A142: 127 | B142: 42.7 | C142: 163.3796492 | D142: 55392.97
A143: 128 | B143: 42.61 | C143: 163.3796492 | D143: 55272.2
A144: 129 | B144: 42.52 | C144: 163.3796492 | D144: 55151.34
A145: 130 | B145: 42.42 | C145: 163.3796492 | D145: 55030.38
A146: 131 | B146: 42.33 | C146: =IFERROR(IF(AND(D145>0,D145<>""),$J$7,""),"") -> 163.3796492 | D146: 54909.33
A147: 132 | B147: 42.24 | C147: 163.3796492 | D147: 54788.19
A148: 133 | B148: 42.14 | C148: 163.3796492 | D148: 54666.95
A149: 134 | B149: 42.05 | C149: 163.3796492 | D149: 54545.62
A150: 135 | B150: 41.96 | C150: 163.3796492 | D150: 54424.2
A151: 136 | B151: 41.86 | C151: 163.3796492 | D151: 54302.68
A152: 137 | B152: 41.77 | C152: 163.3796492 | D152: 54181.07
A153: 138 | B153: 41.68 | C153: 163.3796492 | D153: 54059.37
A154: 139 | B154: 41.58 | C154: 163.3796492 | D154: 53937.57
A155: 140 | B155: 41.49 | C155: 163.3796492 | D155: 53815.68
A156: 141 | B156: 41.4 | C156: 163.3796492 | D156: 53693.7
A157: =IFERROR(IF(D156>0,A156+1,""),"") -> 142 | B157: =IFERROR(IF(D156>0,(ROUND((D156*$D$7)/($J$9),2)),""),"") -> 41.3 | C157: 163.3796492 | D157: =IFERROR(IF(ROUND((D156+B157)-C157,2)>0.1,ROUND((D156+B157)-C157,2),0),"") -> 53571.62
A158: 143 | B158: 41.21 | C158: 163.3796492 | D158: 53449.45
A159: 144 | B159: 41.11 | C159: 163.3796492 | D159: 53327.18
A160: 145 | B160: 41.02 | C160: 163.3796492 | D160: 53204.82
A161: 146 | B161: 40.93 | C161: 163.3796492 | D161: 53082.37
A162: 147 | B162: 40.83 | C162: 163.3796492 | D162: 52959.82
A163: 148 | B163: 40.74 | C163: 163.3796492 | D163: 52837.18
A164: 149 | B164: 40.64 | C164: 163.3796492 | D164: 52714.44
A165: 150 | B165: 40.55 | C165: 163.3796492 | D165: 52591.61
A166: 151 | B166: 40.46 | C166: 163.3796492 | D166: 52468.69
A167: 152 | B167: 40.36 | C167: 163.3796492 | D167: 52345.67
A168: 153 | B168: 40.27 | C168: 163.3796492 | D168: 52222.56
A169: 154 | B169: 40.17 | C169: 163.3796492 | D169: 52099.35
A170: 155 | B170: 40.08 | C170: 163.3796492 | D170: 51976.05
A171: 156 | B171: 39.98 | C171: 163.3796492 | D171: 51852.65
A172: 157 | B172: 39.89 | C172: 163.3796492 | D172: 51729.16
A173: 158 | B173: 39.79 | C173: 163.3796492 | D173: 51605.57
A174: 159 | B174: 39.7 | C174: 163.3796492 | D174: 51481.89
A175: 160 | B175: 39.6 | C175: 163.3796492 | D175: 51358.11
A176: 161 | B176: 39.51 | C176: 163.3796492 | D176: 51234.24
A177: 162 | B177: 39.41 | C177: 163.3796492 | D177: 51110.27
A178: 163 | B178: 39.32 | C178: 163.3796492 | D178: 50986.21
A179: 164 | B179: 39.22 | C179: 163.3796492 | D179: 50862.05
A180: 165 | B180: 39.12 | C180: 163.3796492 | D180: 50737.79
A181: 166 | B181: 39.03 | C181: 163.3796492 | D181: 50613.44
A182: 167 | B182: 38.93 | C182: 163.3796492 | D182: 50488.99
A183: 168 | B183: 38.84 | C183: 163.3796492 | D183: 50364.45
A184: 169 | B184: 38.74 | C184: 163.3796492 | D184: 50239.81
A185: 170 | B185: 38.65 | C185: 163.3796492 | D185: 50115.08
A186: 171 | B186: 38.55 | C186: 163.3796492 | D186: 49990.25
A187: 172 | B187: 38.45 | C187: 163.3796492 | D187: 49865.32
A188: 173 | B188: 38.36 | C188: 163.3796492 | D188: 49740.3
A189: 174 | B189: 38.26 | C189: 163.3796492 | D189: 49615.18
A190: 175 | B190: 38.17 | C190: 163.3796492 | D190: 49489.97
A191: 176 | B191: 38.07 | C191: 163.3796492 | D191: 49364.66
A192: 177 | B192: 37.97 | C192: 163.3796492 | D192: 49239.25
A193: 178 | B193: 37.88 | C193: 163.3796492 | D193: 49113.75
A194: 179 | B194: 37.78 | C194: 163.3796492 | D194: 48988.15
A195: 180 | B195: 37.68 | C195: 163.3796492 | D195: 48862.45
A196: 181 | B196: 37.59 | C196: 163.3796492 | D196: 48736.66
A197: 182 | B197: 37.49 | C197: 163.3796492 | D197: 48610.77
A198: 183 | B198: 37.39 | C198: 163.3796492 | D198: 48484.78
A199: 184 | B199: 37.3 | C199: 163.3796492 | D199: 48358.7
A200: 185 | B200: 37.2 | C200: 163.3796492 | D200: 48232.52
A201: 186 | B201: 37.1 | C201: 163.3796492 | D201: 48106.24
A202: 187 | B202: 37 | C202: 163.3796492 | D202: 47979.86
A203: 188 | B203: 36.91 | C203: 163.3796492 | D203: 47853.39
A204: 189 | B204: 36.81 | C204: 163.3796492 | D204: 47726.82
A205: 190 | B205: 36.71 | C205: 163.3796492 | D205: 47600.15
A206: 191 | B206: 36.62 | C206: 163.3796492 | D206: 47473.39
A207: 192 | B207: 36.52 | C207: 163.3796492 | D207: 47346.53
A208: 193 | B208: 36.42 | C208: 163.3796492 | D208: 47219.57
... 374 more rows
